{"text_format":"3","workbook":"xlsx","n_sheets":1,"sheets":["Gezinsbudget per maand"],"not_rendered":{"defined_names":1},"read":"whole","date_system":"1900"}

{"sheet":"Gezinsbudget per maand","index":0,"n_rows":68,"n_cols":9,"rows_kept":68,"merged":[[0,0,0,6],[2,0,2,1],[2,5,2,6],[8,5,8,6],[18,0,18,3],[27,5,27,8],[29,0,29,3],[36,0,36,3],[37,5,37,8],[42,0,42,3],[44,5,44,8],[54,0,54,3],[54,5,54,8],[61,0,61,3],[62,5,62,8]]}
["Gezinsbudget per maand"]
[]
["Totale geschatte uitgaven",null,"Totale werkelijke uitgaven","Totaal verschil",null,"Geschat maandinkomen"]
[null,{"$f":"Housing[[#Totals],[Geschatte uitgaven]]+Transportation[[#Totals],[Geschatte uitgaven]]+Insurance[[#Totals],[Geschatte uitgaven]]+Food[[#Totals],[Geschatte uitgaven]]+Children[[#Totals],[Geschatte uitgaven]]+Legal[[#Totals],[Geschatte uitgaven]]+Savings[[#Totals],[Geschatte uitgaven]]+Loans[[#Totals],[Geschatte uitgaven]]+Entertainment[[#Totals],[Geschatte uitgaven]]+Taxes[[#Totals],[Geschatte uitgaven]]+PersonalCare[[#Totals],[Geschatte uitgaven]]+Pets[[#Totals],[Geschatte uitgaven]]+Gifts[[#Totals],[Geschatte uitgaven]]","v":{"v":1203,"d":"€ 1,203"}},{"$f":"Housing[[#Totals],[Werkelijke uitgaven]]+Transportation[[#Totals],[Werkelijke uitgaven]]+Insurance[[#Totals],[Werkelijke uitgaven]]+Food[[#Totals],[Werkelijke uitgaven]]+Children[[#Totals],[Werkelijke uitgaven]]+Legal[[#Totals],[Werkelijke uitgaven]]+Savings[[#Totals],[Werkelijke uitgaven]]+Loans[[#Totals],[Werkelijke uitgaven]]+Entertainment[[#Totals],[Werkelijke uitgaven]]+Taxes[[#Totals],[Werkelijke uitgaven]]+PersonalCare[[#Totals],[Werkelijke uitgaven]]+Pets[[#Totals],[Werkelijke uitgaven]]+Gifts[[#Totals],[Werkelijke uitgaven]]","v":{"v":1317,"d":"€ 1,317"}},{"$f":"Housing[[#Totals],[Verschil]]+Transportation[[#Totals],[Verschil]]+Insurance[[#Totals],[Verschil]]+Food[[#Totals],[Verschil]]+Children[[#Totals],[Verschil]]+Legal[[#Totals],[Verschil]]+Savings[[#Totals],[Verschil]]+Loans[[#Totals],[Verschil]]+Entertainment[[#Totals],[Verschil]]+Taxes[[#Totals],[Verschil]]+PersonalCare[[#Totals],[Verschil]]+Pets[[#Totals],[Verschil]]+Gifts[[#Totals],[Verschil]]","v":{"v":-114,"d":"€ 114"}},null,"Inkomen 1",{"v":4000,"d":"€ 4,000"}]
[{"$nulls":5},"Inkomen 2",{"v":1200,"d":"€ 1,200"}]
["Huisvesting","Geschatte uitgaven","Werkelijke uitgaven","Verschil",null,"Extra inkomen",{"v":300,"d":"€ 300"}]
["Hypotheek of huur",{"v":1000,"d":"€ 1,000"},{"v":1000,"d":"€ 1,000"},{"$f":"Housing[Geschatte uitgaven]-Housing[Werkelijke uitgaven]","v":{"v":0,"d":"€ 0"}},null,"Totaal maandinkomen",{"$f":"SUM(G4:G6)","v":{"v":5500,"d":"€ 5,500"}}]
["Tweede hypotheek of huur",{"v":0,"d":"€ 0"},{"v":0,"d":"€ 0"},{"$f":"Housing[Geschatte uitgaven]-Housing[Werkelijke uitgaven]","v":{"v":0,"d":"€ 0"}}]
["Telefoonnr.",{"v":62,"d":"€ 62"},{"v":100,"d":"€ 100"},{"$f":"Housing[Geschatte uitgaven]-Housing[Werkelijke uitgaven]","v":{"v":-38,"d":"€ 38"}},null,"Werkelijk maandinkomen"]
["Elektriciteit",{"v":44,"d":"€ 44"},{"v":125,"d":"€ 125"},{"$f":"Housing[Geschatte uitgaven]-Housing[Werkelijke uitgaven]","v":{"v":-81,"d":"€ 81"}},null,"Inkomen 1",{"v":4000,"d":"€ 4,000"}]
["Gas",{"v":22,"d":"€ 22"},{"v":35,"d":"€ 35"},{"$f":"Housing[Geschatte uitgaven]-Housing[Werkelijke uitgaven]","v":{"v":-13,"d":"€ 13"}},null,"Inkomen 2",{"v":1200,"d":"€ 1,200"}]
["Water en riolering",{"v":8,"d":"€ 8"},{"v":8,"d":"€ 8"},{"$f":"Housing[Geschatte uitgaven]-Housing[Werkelijke uitgaven]","v":{"v":0,"d":"€ 0"}},null,"Extra inkomen",{"v":300,"d":"€ 300"}]
["Kabel",{"v":34,"d":"€ 34"},{"v":39,"d":"€ 39"},{"$f":"Housing[Geschatte uitgaven]-Housing[Werkelijke uitgaven]","v":{"v":-5,"d":"€ 5"}},null,"Totaal maandinkomen",{"$f":"SUM(G10:G12)","v":{"v":5500,"d":"€ 5,500"}}]
["Vuilnisophaal",{"v":10,"d":"€ 10"},{"v":10,"d":"€ 10"},{"$f":"Housing[Geschatte uitgaven]-Housing[Werkelijke uitgaven]","v":{"v":0,"d":"€ 0"}}]
["Onderhoud of reparaties",{"v":23,"d":"€ 23"},{"v":0,"d":"€ 0"},{"$f":"Housing[Geschatte uitgaven]-Housing[Werkelijke uitgaven]","v":{"v":23,"d":"€ 23"}},null,"Geschatte balans\n",{"$f":"SUM(G7-B4)","v":{"v":4297,"d":"€ 4,297"}}]
["Benodigdheden",{"v":0,"d":"€ 0"},{"v":0,"d":"€ 0"},{"$f":"Housing[Geschatte uitgaven]-Housing[Werkelijke uitgaven]","v":{"v":0,"d":"€ 0"}},null,"Werkelijke balans",{"$f":"SUM(G13-C4)","v":{"v":4183,"d":"€ 4,183"}}]
["Overige",{"v":0,"d":"€ 0"},{"v":0,"d":"€ 0"},{"$f":"Housing[Geschatte uitgaven]-Housing[Werkelijke uitgaven]","v":{"v":0,"d":"€ 0"}},null,"Verschil",{"$f":"SUM(G16-G15)","v":{"v":-114,"d":"€ 114"}}]
["Totaal",{"$f":"SUBTOTAL(109,Housing[Geschatte uitgaven])","v":{"v":1203,"d":"€ 1,203"}},{"$f":"SUBTOTAL(109,Housing[Werkelijke uitgaven])","v":{"v":1317,"d":"€ 1,317"}},{"$f":"SUBTOTAL(109,Housing[Verschil])","v":{"v":-114,"d":"€ 114"}}]
[]
["Transport","Geschatte uitgaven","Werkelijke uitgaven","Verschil",null,"Leningen","Geschatte uitgaven","Werkelijke uitgaven","Verschil"]
["Betaling voertuig 1",null,null,{"$f":"Transportation[Geschatte uitgaven]-Transportation[Werkelijke uitgaven]","v":{"v":0,"d":"€ 0"}},null,"Persoonlijk",null,null,{"$f":"Loans[Geschatte uitgaven]-Loans[Werkelijke uitgaven]","v":{"v":0,"d":"€ 0"}}]
["Betaling voertuig 2",null,null,{"$f":"Transportation[Geschatte uitgaven]-Transportation[Werkelijke uitgaven]","v":{"v":0,"d":"€ 0"}},null,"Student",null,null,{"$f":"Loans[Geschatte uitgaven]-Loans[Werkelijke uitgaven]","v":{"v":0,"d":"€ 0"}}]
["Openbaar vervoer",null,null,{"$f":"Transportation[Geschatte uitgaven]-Transportation[Werkelijke uitgaven]","v":{"v":0,"d":"€ 0"}},null,"Creditcard",null,null,{"$f":"Loans[Geschatte uitgaven]-Loans[Werkelijke uitgaven]","v":{"v":0,"d":"€ 0"}}]
["Verzekering",null,null,{"$f":"Transportation[Geschatte uitgaven]-Transportation[Werkelijke uitgaven]","v":{"v":0,"d":"€ 0"}},null,"Creditcard",null,null,{"$f":"Loans[Geschatte uitgaven]-Loans[Werkelijke uitgaven]","v":{"v":0,"d":"€ 0"}}]
["Wegenbelasting",null,null,{"$f":"Transportation[Geschatte uitgaven]-Transportation[Werkelijke uitgaven]","v":{"v":0,"d":"€ 0"}},null,"Creditcard",null,null,{"$f":"Loans[Geschatte uitgaven]-Loans[Werkelijke uitgaven]","v":{"v":0,"d":"€ 0"}}]
["Brandstof",null,null,{"$f":"Transportation[Geschatte uitgaven]-Transportation[Werkelijke uitgaven]","v":{"v":0,"d":"€ 0"}},null,"Overige",null,null,{"$f":"Loans[Geschatte uitgaven]-Loans[Werkelijke uitgaven]","v":{"v":0,"d":"€ 0"}}]
["Onderhoud",null,null,{"$f":"Transportation[Geschatte uitgaven]-Transportation[Werkelijke uitgaven]","v":{"v":0,"d":"€ 0"}},null,"Totaal",{"$f":"SUBTOTAL(109,Loans[Geschatte uitgaven])","v":{"v":0,"d":"€ 0"}},{"$f":"SUBTOTAL(109,Loans[Werkelijke uitgaven])","v":{"v":0,"d":"€ 0"}},{"$f":"SUBTOTAL(109,Loans[Verschil])","v":{"v":0,"d":"€ 0"}}]
["Overige",null,null,{"$f":"Transportation[Geschatte uitgaven]-Transportation[Werkelijke uitgaven]","v":{"v":0,"d":"€ 0"}}]
["Totaal",{"$f":"SUBTOTAL(109,Transportation[Geschatte uitgaven])","v":{"v":0,"d":"€ 0"}},{"$f":"SUBTOTAL(109,Transportation[Werkelijke uitgaven])","v":{"v":0,"d":"€ 0"}},{"$f":"SUBTOTAL(109,Transportation[Verschil])","v":{"v":0,"d":"€ 0"}},null,"Entertainment","Geschatte uitgaven","Werkelijke uitgaven","Verschil"]
[{"$nulls":5},"Video's/dvd's",null,null,{"$f":"Entertainment[Geschatte uitgaven]-Entertainment[Werkelijke uitgaven]","v":{"v":0,"d":"€ 0"}}]
["Verzekering","Geschatte uitgaven","Werkelijke uitgaven","Verschil",null,"Cd's",null,null,{"$f":"Entertainment[Geschatte uitgaven]-Entertainment[Werkelijke uitgaven]","v":{"v":0,"d":"€ 0"}}]
["Start",null,null,{"$f":"Insurance[Geschatte uitgaven]-Insurance[Werkelijke uitgaven]","v":{"v":0,"d":"€ 0"}},null,"Films",null,null,{"$f":"Entertainment[Geschatte uitgaven]-Entertainment[Werkelijke uitgaven]","v":{"v":0,"d":"€ 0"}}]
["Gezondheid",null,null,{"$f":"Insurance[Geschatte uitgaven]-Insurance[Werkelijke uitgaven]","v":{"v":0,"d":"€ 0"}},null,"Concerten",null,null,{"$f":"Entertainment[Geschatte uitgaven]-Entertainment[Werkelijke uitgaven]","v":{"v":0,"d":"€ 0"}}]
["Leven",null,null,{"$f":"Insurance[Geschatte uitgaven]-Insurance[Werkelijke uitgaven]","v":{"v":0,"d":"€ 0"}},null,"Sportevenementen",null,null,{"$f":"Entertainment[Geschatte uitgaven]-Entertainment[Werkelijke uitgaven]","v":{"v":0,"d":"€ 0"}}]
["Overige",null,null,{"$f":"Insurance[Geschatte uitgaven]-Insurance[Werkelijke uitgaven]","v":{"v":0,"d":"€ 0"}},null,"Theaterbezoek",null,null,{"$f":"Entertainment[Geschatte uitgaven]-Entertainment[Werkelijke uitgaven]","v":{"v":0,"d":"€ 0"}}]
["Totaal",{"$f":"SUBTOTAL(109,Insurance[Geschatte uitgaven])","v":{"v":0,"d":"€ 0"}},{"$f":"SUBTOTAL(109,Insurance[Werkelijke uitgaven])","v":{"v":0,"d":"€ 0"}},{"$f":"SUBTOTAL(109,Insurance[Verschil])","v":{"v":0,"d":"€ 0"}},null,"Overige",null,null,{"$f":"Entertainment[Geschatte uitgaven]-Entertainment[Werkelijke uitgaven]","v":{"v":0,"d":"€ 0"}}]
[{"$nulls":5},"Totaal",{"$f":"SUBTOTAL(109,Entertainment[Geschatte uitgaven])","v":{"v":0,"d":"€ 0"}},{"$f":"SUBTOTAL(109,Entertainment[Werkelijke uitgaven])","v":{"v":0,"d":"€ 0"}},{"$f":"SUBTOTAL(109,Entertainment[Verschil])","v":{"v":0,"d":"€ 0"}}]
["Eten","Geschatte uitgaven","Werkelijke uitgaven","Verschil"]
["Boodschappen",null,null,{"$f":"Food[Geschatte uitgaven]-Food[Werkelijke uitgaven]","v":{"v":0,"d":"€ 0"}},null,"Belasting","Geschatte uitgaven","Werkelijke uitgaven","Verschil"]
["Restaurants",null,null,{"$f":"Food[Geschatte uitgaven]-Food[Werkelijke uitgaven]","v":{"v":0,"d":"€ 0"}},null,"Staat",null,null,{"$f":"Taxes[Geschatte uitgaven]-Taxes[Werkelijke uitgaven]","v":{"v":0,"d":"€ 0"}}]
["Overige",null,null,{"$f":"Food[Geschatte uitgaven]-Food[Werkelijke uitgaven]","v":{"v":0,"d":"€ 0"}},null,"Provincie",null,null,{"$f":"Taxes[Geschatte uitgaven]-Taxes[Werkelijke uitgaven]","v":{"v":0,"d":"€ 0"}}]
["Totaal",{"$f":"SUBTOTAL(109,Food[Geschatte uitgaven])","v":{"v":0,"d":"€ 0"}},{"$f":"SUBTOTAL(109,Food[Werkelijke uitgaven])","v":{"v":0,"d":"€ 0"}},{"$f":"SUBTOTAL(109,Food[Verschil])","v":{"v":0,"d":"€ 0"}},null,"Gemeente",null,null,{"$f":"Taxes[Geschatte uitgaven]-Taxes[Werkelijke uitgaven]","v":{"v":0,"d":"€ 0"}}]
[{"$nulls":5},"Overige",null,null,{"$f":"Taxes[Geschatte uitgaven]-Taxes[Werkelijke uitgaven]","v":{"v":0,"d":"€ 0"}}]
["Kinderen","Geschatte uitgaven","Werkelijke uitgaven","Verschil",null,"Totaal",{"$f":"SUBTOTAL(109,Taxes[Geschatte uitgaven])","v":{"v":0,"d":"€ 0"}},{"$f":"SUBTOTAL(109,Taxes[Werkelijke uitgaven])","v":{"v":0,"d":"€ 0"}},{"$f":"SUBTOTAL(109,Taxes[Verschil])","v":{"v":0,"d":"€ 0"}}]
["Medische kosten",null,null,{"$f":"Children[Geschatte uitgaven]-Children[Werkelijke uitgaven]","v":{"v":0,"d":"€ 0"}}]
["Kleding",null,null,{"$f":"Children[Geschatte uitgaven]-Children[Werkelijke uitgaven]","v":{"v":0,"d":"€ 0"}},null,"Persoonlijke verzorging","Geschatte uitgaven","Werkelijke uitgaven","Verschil"]
["Schoolgeld",null,null,{"$f":"Children[Geschatte uitgaven]-Children[Werkelijke uitgaven]","v":{"v":0,"d":"€ 0"}},null,"Medische kosten",null,null,{"$f":"PersonalCare[Geschatte uitgaven]-PersonalCare[Werkelijke uitgaven]","v":{"v":0,"d":"€ 0"}}]
["Schoolbenodigdheden",null,null,{"$f":"Children[Geschatte uitgaven]-Children[Werkelijke uitgaven]","v":{"v":0,"d":"€ 0"}},null,"Haar/nagels",null,null,{"$f":"PersonalCare[Geschatte uitgaven]-PersonalCare[Werkelijke uitgaven]","v":{"v":0,"d":"€ 0"}}]
["Lidmaatschapsgelden",null,null,{"$f":"Children[Geschatte uitgaven]-Children[Werkelijke uitgaven]","v":{"v":0,"d":"€ 0"}},null,"Kleding",null,null,{"$f":"PersonalCare[Geschatte uitgaven]-PersonalCare[Werkelijke uitgaven]","v":{"v":0,"d":"€ 0"}}]
["Lunchgeld",null,null,{"$f":"Children[Geschatte uitgaven]-Children[Werkelijke uitgaven]","v":{"v":0,"d":"€ 0"}},null,"Stomerij",null,null,{"$f":"PersonalCare[Geschatte uitgaven]-PersonalCare[Werkelijke uitgaven]","v":{"v":0,"d":"€ 0"}}]
["Kinderopvang",null,null,{"$f":"Children[Geschatte uitgaven]-Children[Werkelijke uitgaven]","v":{"v":0,"d":"€ 0"}},null,"Sportclub",null,null,{"$f":"PersonalCare[Geschatte uitgaven]-PersonalCare[Werkelijke uitgaven]","v":{"v":0,"d":"€ 0"}}]
["Speelgoed",null,null,{"$f":"Children[Geschatte uitgaven]-Children[Werkelijke uitgaven]","v":{"v":0,"d":"€ 0"}},null,"Lidmaatschapsgelden",null,null,{"$f":"PersonalCare[Geschatte uitgaven]-PersonalCare[Werkelijke uitgaven]","v":{"v":0,"d":"€ 0"}}]
["Overige",null,null,{"$f":"Children[Geschatte uitgaven]-Children[Werkelijke uitgaven]","v":{"v":0,"d":"€ 0"}},null,"Overige",null,null,{"$f":"PersonalCare[Geschatte uitgaven]-PersonalCare[Werkelijke uitgaven]","v":{"v":0,"d":"€ 0"}}]
["Totaal",{"$f":"SUBTOTAL(109,Children[Geschatte uitgaven])","v":{"v":0,"d":"€ 0"}},{"$f":"SUBTOTAL(109,Children[Werkelijke uitgaven])","v":{"v":0,"d":"€ 0"}},{"$f":"SUBTOTAL(109,Children[Verschil])","v":{"v":0,"d":"€ 0"}},null,"Totaal",{"$f":"SUBTOTAL(109,PersonalCare[Geschatte uitgaven])","v":{"v":0,"d":"€ 0"}},{"$f":"SUBTOTAL(109,PersonalCare[Werkelijke uitgaven])","v":{"v":0,"d":"€ 0"}},{"$f":"SUBTOTAL(109,PersonalCare[Verschil])","v":{"v":0,"d":"€ 0"}}]
[]
["Juridisch","Geschatte uitgaven","Werkelijke uitgaven","Verschil",null,"Huisdieren","Geschatte uitgaven","Werkelijke uitgaven","Verschil"]
["Advocaat",null,null,{"$f":"Legal[Geschatte uitgaven]-Legal[Werkelijke uitgaven]","v":{"v":0,"d":"€ 0"}},null,"Eten",null,null,{"$f":"Pets[Geschatte uitgaven]-Pets[Werkelijke uitgaven]","v":{"v":0,"d":"€ 0"}}]
["Alimentatie",null,null,{"$f":"Legal[Geschatte uitgaven]-Legal[Werkelijke uitgaven]","v":{"v":0,"d":"€ 0"}},null,"Medische kosten",null,null,{"$f":"Pets[Geschatte uitgaven]-Pets[Werkelijke uitgaven]","v":{"v":0,"d":"€ 0"}}]
["Betalingen",null,null,{"$f":"Legal[Geschatte uitgaven]-Legal[Werkelijke uitgaven]","v":{"v":0,"d":"€ 0"}},null,"Verzorging",null,null,{"$f":"Pets[Geschatte uitgaven]-Pets[Werkelijke uitgaven]","v":{"v":0,"d":"€ 0"}}]
["Overige",null,null,{"$f":"Legal[Geschatte uitgaven]-Legal[Werkelijke uitgaven]","v":{"v":0,"d":"€ 0"}},null,"Speeltjes",null,null,{"$f":"Pets[Geschatte uitgaven]-Pets[Werkelijke uitgaven]","v":{"v":0,"d":"€ 0"}}]
["Totaal",{"$f":"SUBTOTAL(109,Legal[Geschatte uitgaven])","v":{"v":0,"d":"€ 0"}},{"$f":"SUBTOTAL(109,Legal[Werkelijke uitgaven])","v":{"v":0,"d":"€ 0"}},{"$f":"SUBTOTAL(109,Legal[Verschil])","v":{"v":0,"d":"€ 0"}},null,"Overige",null,null,{"$f":"Pets[Geschatte uitgaven]-Pets[Werkelijke uitgaven]","v":{"v":0,"d":"€ 0"}}]
[{"$nulls":5},"Totaal",{"$f":"SUBTOTAL(109,Pets[Geschatte uitgaven])","v":{"v":0,"d":"€ 0"}},{"$f":"SUBTOTAL(109,Pets[Werkelijke uitgaven])","v":{"v":0,"d":"€ 0"}},{"$f":"SUBTOTAL(109,Pets[Verschil])","v":{"v":0,"d":"€ 0"}}]
["Spaargelden/beleggingen","Geschatte uitgaven","Werkelijke uitgaven","Verschil"]
["Pensioenvoorziening",null,null,{"$f":"Savings[Geschatte uitgaven]-Savings[Werkelijke uitgaven]","v":{"v":0,"d":"€ 0"}},null,"Giften en donaties","Geschatte uitgaven","Werkelijke uitgaven","Verschil"]
["Beleggingsrekening",null,null,{"$f":"Savings[Geschatte uitgaven]-Savings[Werkelijke uitgaven]","v":{"v":0,"d":"€ 0"}},null,"Goed doel 1",null,null,{"$f":"Gifts[Geschatte uitgaven]-Gifts[Werkelijke uitgaven]","v":{"v":0,"d":"€ 0"}}]
["Studie",null,null,{"$f":"Savings[Geschatte uitgaven]-Savings[Werkelijke uitgaven]","v":{"v":0,"d":"€ 0"}},null,"Goed doel 2",null,null,{"$f":"Gifts[Geschatte uitgaven]-Gifts[Werkelijke uitgaven]","v":{"v":0,"d":"€ 0"}}]
["Overige",null,null,{"$f":"Savings[Geschatte uitgaven]-Savings[Werkelijke uitgaven]","v":{"v":0,"d":"€ 0"}},null,"Goed doel 3",null,null,{"$f":"Gifts[Geschatte uitgaven]-Gifts[Werkelijke uitgaven]","v":{"v":0,"d":"€ 0"}}]
["Totaal",{"$f":"SUBTOTAL(109,Savings[Geschatte uitgaven])","v":{"v":0,"d":"€ 0"}},{"$f":"SUBTOTAL(109,Savings[Werkelijke uitgaven])","v":{"v":0,"d":"€ 0"}},{"$f":"SUBTOTAL(109,Savings[Verschil])","v":{"v":0,"d":"€ 0"}},null,"Totaal",{"$f":"SUBTOTAL(109,Gifts[Geschatte uitgaven])","v":{"v":0,"d":"€ 0"}},{"$f":"SUBTOTAL(109,Gifts[Werkelijke uitgaven])","v":{"v":0,"d":"€ 0"}},{"$f":"SUBTOTAL(109,Gifts[Verschil])","v":{"v":0,"d":"€ 0"}}]